Cogmind - Beta 15 *** ADVENTURER MODE // 2025.07.22 @ 22:59:52 Player: Nagash Result: Destroyed by Y-54 Guardian with Gatling Laser Performance ------------- Evolutions (3) 1500 Regions Visited (7) 1400 Robots Destroyed (49) 245 Value Destroyed (1517) 1517 Prototype IDs (1) 20 Alien Tech Used (0) 0 Bonus (-467) -467 TOTAL SCORE: 4215 Bonus ------- Follower Combat Kills 215 Friendly Fire -682 Cogmind --------- Core Integrity 0/700 Matter 334/450 Energy 350/350 System Corruption 3% Temperature Cool (6) Movement Rolling (100) Location -7/Factory Parts ------- > --- POWER (2) -------- Light Nuclear Core Improved Deuterium Engine > --- PROPULSION (4) --- Armored Huge Wheel Armored Huge Wheel > --- UTILITY (5) ------ Compact Matter Pod Core Analyzer ECM Suite Backup Plating III > --- WEAPON (2) ------- Heavy Rocket Launcher Axe > --- INVENTORY (5) ---- Armored Treads Heavy Treads Heavy Treads Peak State ------------ > --- POWER ------------ Improved Deuterium Engine Improved Deuterium Engine > --- PROPULSION ------- Armored Huge Wheel Armored Huge Wheel > --- UTILITY ---------- Compact Matter Pod Core Analyzer ECM Suite Backup Plating III > --- WEAPON ----------- Heavy Rocket Launcher Axe > --- INVENTORY -------- Armored Treads Heavy Treads Heavy Treads [Rating: 44] Favorites ----------- Power Light Nuclear Core Engine Improved Deuterium Engine Power Core Light Nuclear Core Propulsion Cesium-ion Thruster Leg Aluminum Leg Wheel Armored Huge Wheel Hover Unit Gravmag System Flight Unit Cesium-ion Thruster Utility Small Storage Unit Device ECM Suite Storage Small Storage Unit Processor Advanced Visual Processing Unit Protection Backup Plating III Weapon Medium Laser Energy Gun Medium Laser Ballistic Gun Gauss Rifle Ballistic Cannon Advanced Assault Cannon Launcher Heavy Rocket Launcher Impact Weapon Flail Slashing Weapon Axe Build | -11 -10 -9 -9 -8 -7 -7 -7 ------- Run | Yrd Mat Mat Min Mat Fac Was Fac Slots Evolved 6 | . . 2 . 2 2 . . Power 1 | . . . . 1 . . . Propulsion 2 | . . 1 . 1 . . . Utility 3 | . . 1 . . 2 . . Weapon . | . . . . . . . . Parts Attached 54 | 7 5 7 3 8 20 1 3 Power 11 | 1 . 2 1 1 5 . 1 Engine 6 | 1 . 2 1 . 2 . . Core 5 | . . . . 1 3 . 1 Reactor . | . . . . . . . . Propulsion 18 | 2 2 3 . 4 7 . . Treads . | . . . . . . . . Leg 1 | . . . . 1 . . . Wheel 6 | 2 2 . . . 2 . . Hover 2 | . . . . . 2 . . Flight 9 | . . 3 . 3 3 . . Utility 13 | 2 3 1 1 1 3 . 2 Device 8 | 1 2 1 1 . 2 . 1 Storage 3 | 1 1 . . . 1 . . Processor 2 | . . . . 1 . . 1 Hackware . | . . . . . . . . Protection . | . . . . . . . . Artifact . | . . . . . . . . Weapon 12 | 2 . 1 1 2 5 1 . Energy Gun 5 | 2 . . 1 1 1 . . Energy Cannon . | . . . . . . . . Ballistic Gun 2 | . . . . 1 1 . . Ballistic Cannon 1 | . . . . . 1 . . Launcher 1 | . . . . . 1 . . Special Weapon . | . . . . . . . . Impact Weapon 1 | . . 1 . . . . . Slashing Weapon 2 | . . . . . 1 1 . Piercing Weapon . | . . . . . . . . Special Melee Weapon . | . . . . . . . . Unidentified Prototypes 1 | . . . . . 1 . . Parts Lost 24 | . . 1 4 10 9 . . Power 4 | . . 1 . 1 2 . . Propulsion 10 | . . . 1 5 4 . . Utility 5 | . . . 1 2 2 . . Weapon 5 | . . . 2 2 1 . . Highest Loss Streak 4 | . . 1 4 4 3 . . To Critical Strikes . | . . . . . . . . Average Backups 5 | 4 7 7 6 6 5 3 3 Power . | 1 1 . . . . . . Propulsion 1 | 2 1 . 1 . . 3 3 Utility 3 | . 4 6 5 5 3 . . Weapon . | . . . . . . . . Tool/Special . | . . . . . . . . Unused Backups 19 | 4 3 . 1 1 4 3 3 Power 2 | 1 1 . . . . . . Propulsion 9 | 2 2 . . . . 2 3 Utility 6 | 1 . . 1 1 3 . . Weapon 2 | . . . . . 1 1 . Tool/Special . | . . . . . . . . Average Slot Usage (%) 56 | . 99 92 76 60 32 60 70 Engine 5 | . 14 11 11 . 1 15 12 Core 3 | . . . . 5 4 . 2 Wheel 7 | . 28 9 . . 3 15 15 Flight 8 | . . 19 27 18 4 . . Device 8 | . 13 22 17 7 5 . 2 Storage 6 | . 14 11 11 9 3 7 7 Processor 1 | . . . . 3 1 . 5 Energy Gun 6 | . 28 10 5 8 1 . . Ballistic Gun 1 | . . . . 7 . . . Launcher 1 | . . . . . 1 7 7 Impact Weapon 1 | . . 10 5 . . . . Slashing Weapon 1 | . . . . . 1 7 7 Peak Build Rating 44 | 10 10 17 21 23 36 39 44 Average Rating 17 | 7 8 13 15 16 15 38 42 On Entrance 15 | . 9 8 16 12 5 36 39 Naked Turns . | . . . . . . . . Heaviest Build 35 | 13 13 17 19 19 31 33 35 Greatest Support 56 | 32 32 32 15 18 56 56 56 Greatest Overweight (x) 3 | 2 . 3 1 3 3 . . Average Overweight (x) . | . . . . 1 . . . Largest Inventory Capacity 8 | 8 8 8 8 8 8 5 5 Average Capacity 6 | 7 8 8 8 8 6 5 5 Most Carried 8 | 8 8 8 8 7 8 5 5 Average Carried 6 | 4 7 7 6 6 5 4 5 Final Capacity 8 | 8 8 8 8 8 5 5 5 Final Carried 8 | 7 8 7 6 6 5 5 5 Class Distribution -------------------- 86% | Mutant 8% | Infiltrator-Mutant Dominant Class ---------------- Mutant | -10/Materials Mutant | -9/Materials Mutant | -9/Mines Mutant | -8/Materials Mutant | -7/Factory Mutant | -7/Waste Mutant | -7/Factory Resources | -11 -10 -9 -9 -8 -7 -7 -7 ----------- Run | Yrd Mat Mat Min Mat Fac Was Fac Matter Collected 1168 | 270 86 54 60 250 302 . 146 Remotely . | . . . . . . . . Salvage Created 1478 | 133 152 222 45 99 666 69 92 Parts 90 | 12 17 12 . 3 39 6 1 Haulers Intercepted 1 | . . . . . 1 . . Recyclers Shooed 1 | . . . . . 1 . . Parts Field Recycled . | . . . . . . . . Retrieved Matter . | . . . . . . . . Parts Self-Destructed . | . . . . . . . . Prevented . | . . . . . . . . Kills | -11 -10 -9 -9 -8 -7 -7 -7 ------- Run | Yrd Mat Mat Min Mat Fac Was Fac Combat Hostiles Destroyed 37 | . 7 7 2 2 18 . 1 Melee 6 | . . 3 . . 3 . . Guns 20 | . 7 3 2 2 6 . . Cannons 1 | . . . . . 1 . . AOE 9 | . . . . . 8 . 1 Classes Destroyed 14 | 2 3 1 2 . 5 1 . Worker 2 | . . . . . 1 . 1 Tunneler 4 | 3 . . . . 1 . . Hauler 1 | . . . . . 1 . . Recycler 2 | 1 . . . . . . 1 Watcher 2 | . 1 . . . 1 . . Swarmer 13 | . 6 3 . . 4 . . Grunt 12 | . 1 2 . 1 8 . . Brawler 1 | . . . . . 1 . . Sentry 5 | . . 2 . 1 1 . 1 Demolisher 1 | . . . 1 . . . . Hunter 1 | . . . . . 1 . . Programmer 3 | . . . . . 3 . . Assembled 1 | . . . 1 . . . . Surgeon 1 | . . . . . . 1 . Wasp 1 | . . . . . . 1 . Best Kill Streak 6 | 2 3 6 1 1 4 . 2 Combat Bots Only 6 | . 3 6 1 1 4 . 1 Max Kills in Single Turn 3 | 1 2 1 1 1 3 2 1 Gunslinging 1 | . 1 . . . . . . Exploded 3 | . . . . . 3 . 1 Melee 1 | . . 1 . . 1 . . Uniques/NPCs Destroyed . | . . . . . . . . Combat | -11 -10 -9 -9 -8 -7 -7 -7 -------- Run | Yrd Mat Mat Min Mat Fac Was Fac Hostile Shots Fired 472 | . 41 60 35 99 216 . 21 Missed 189 | . 16 25 18 36 85 . 9 Hits 283 | . 25 35 17 63 131 . 12 Melee 4 | . . . 1 . 3 . . Projectile 279 | . 25 35 16 63 128 . 12 Critical Strikes 9 | . . . 2 3 4 . . Damage Taken 3219 | . 151 295 250 723 1679 48 73 Core 1119 | . 8 121 74 209 687 . 20 Absorbed by Shields . | . . . . . . . . Ignored by Resistances 933 | . 52 86 70 208 481 12 24 Regen/Repaired (Parts) 191 | . . . . . . 191 . Core Remaining (%) 77 | 100 96 . 51 62 . . . Volleys Fired 95 | 6 11 14 8 11 42 . 3 Largest 2 | 2 2 1 1 2 1 . 1 Hottest 100 | 100 100 50 45 93 69 . 39 Shots Fired 125 | 12 22 14 8 22 43 1 3 Gun 96 | 12 22 14 8 22 18 . . Cannon 12 | . . . . . 12 . . Launcher 17 | . . . . . 13 1 3 Special . | . . . . . . . . Kinetic 23 | . . . . 11 12 . . Thermal 77 | 12 22 14 . 11 18 . . Explosive 17 | . . . . . 13 1 3 Electromagnetic 8 | . . . 8 . . . . Robot Hit Streak 17 | 9 17 6 9 7 10 . 3 Robot Miss Streak 2 | 1 2 2 1 2 1 1 . Penetration Max . | . . . . . . . . Secondary Targets 2 | . 2 . . . . . . Max Gunslinging Chain 1 | . 1 . . . . . . Shots Hit Robots 111 | 9 13 20 6 16 43 . 4 Core Hits 73 | 5 9 6 3 3 37 4 6 Critical Kills . | . . . . . . . . Critical Parts Destroyed 1 | . . 1 . . . . . Critical Strikes 6 | 1 . 2 . 2 1 . . Burn 4 | 1 . 1 . 1 1 . . Destroy 1 | . . . . 1 . . . Smash 1 | . . 1 . . . . . Melee Attacks 20 | . . 12 . . 7 . 1 Impact 12 | . . 12 . . . . . Slashing 8 | . . . . . 7 . 1 Piercing . | . . . . . . . . Sneak Attacks 1 | . . . . . . . 1 Combat Hostiles . | . . . . . . . . Follow-up Attacks . | . . . . . . . . Damage Inflicted 3813 | 112 160 412 81 217 2069 562 200 Guns 1026 | 112 160 125 78 217 334 . . Cannons 350 | . . . . . 350 . . Explosions 1836 | . . . . . 1131 562 143 Melee 563 | . . 287 . . 219 . 57 Ramming 38 | . . . 3 . 35 . . Kinetic 475 | . . . . 125 350 . . Thermal 823 | 112 160 125 . 92 334 . . Explosive 1836 | . . . . . 1131 562 143 Electromagnetic 78 | . . . 78 . . . . Impact 287 | . . 287 . . . . . Slashing 276 | . . . . . 219 . 57 Piercing . | . . . . . . . . Highest Corruption 4 | . . . 4 . 3 3 3 Average Corruption 3 | . . . 4 . 2 3 3 Corruption Purged . | . . . . . . . . Corruption Blocked . | . . . . . . . . Effects 39 | . . . 2 . 25 5 7 Message Errors 7 | . . . 1 . 5 . 1 Matter Fused 6 | . . . . . 4 1 1 Heat Flow Errors 4 | . . . . . 2 1 1 Energy Discharges 4 | . . . . . 2 . 2 Parts Rejected 2 | . . . . . 2 . . Data Loss (minor) 9 | . . . . . 6 2 1 Data Loss (major) 4 | . . . 1 . 3 . . Misfires 2 | . . . . . 1 1 . Alerts 1 | . . . . . . . 1 Overload Shots . | . . . . . . . . Overflow Damage 183 | . . 55 . . 47 60 21 Projectiles 47 | . . . . . 47 . . Explosions 64 | . . . . . . 60 4 Melee 72 | . . 55 . . . . 17 Knockbacks 5 | . . . . . 5 . . Impact 1 | . . . . . 1 . . Kinetic 3 | . . . . . 3 . . Secondary 1 | . . . . . 1 . . Self-Inflicted Damage 336 | . . . 1 . 287 48 . Shots 7 | . . . . . 6 1 . Rammed 8 | . 1 . 1 . 6 . . Targets Rammed 8 | . 1 . 1 . 6 . . Kicked . | . . . . . . . . Crushed . | . . . . . . . . Highest Temperature 211 | 137 175 16 73 112 189 211 150 Average Temperature 50 | 69 65 5 17 57 42 106 69 Received Heat Transfer 1200 | . 24 141 120 288 591 . 36 Siege Activations . | . . . . . . . . Martial Activations . | . . . . . . . . Shielding Activations . | . . . . . . . . Robots Disrupted . | . . . . . . . . Combat Hostiles . | . . . . . . . . Robots Corrupted 1 | . . 1 . . . . . Combat Hostiles 1 | . . 1 . . . . . Parts Fried 3 | . . 3 . . . . . Impact Corruptions 3 | . . 3 . . . . . Robots Melted . | . . . . . . . . Combat Hostiles . | . . . . . . . . Parts Melted 3 | . 1 1 . 1 . . . Heat Transferred 2294 | 407 481 444 . 296 666 . . Parts Sabotaged . | . . . . . . . . Parts Stolen . | . . . . . . . . Parts Stripped . | . . . . . . . . Power Chain Reactions . | . . . . . . . . Alert | -11 -10 -9 -9 -8 -7 -7 -7 ------- Run | Yrd Mat Mat Min Mat Fac Was Fac Maximum Alert Level 1 | . . . . . 1 . . Low Security (%) 96 | 100 100 100 100 100 92 100 100 Level 1 3 | . . . . . 7 . . Level 2 . | . . . . . . . . Level 3 . | . . . . . . . . Level 4 . | . . . . . . . . Level 5 . | . . . . . . . . High Security . | . . . . . . . . Max Security . | . . . . . . . . Peak Influence 331 | 10 71 130 30 50 331 93 169 Initial 93 | . . 13 9 . . 93 1 Average 39 | 2 25 67 2 5 55 50 47 Influence Increases 1751 | 20 168 180 30 137 970 . 246 Destroy 0b10 Robot/C 840 | . 140 140 20 80 360 . 100 Destroy 0b10 Robot/NC 55 | 20 5 . . . 20 . 10 Destroy Leader 196 | . 22 40 10 30 74 . 20 Allied During Kill 2 | . . . . . . . 2 Successful Hack 10 | . . . . . 10 . . Disable Machine 117 | . . . . 27 54 . 36 Destroy Structure 231 | . 1 . . . 152 . 78 Lose Combat Pursuer 300 | . . . . . 300 . . Influence Decreases 1580 | 20 131 187 60 137 649 318 78 Entered New Map 275 | . . 24 21 . . 228 2 Time Decay 1171 | 20 131 153 19 98 589 90 71 Lost Part 109 | . . 10 20 19 60 . . Lost Ally 25 | . . . . 20 . . 5 Squads Dispatched 14 | . . 3 . 2 8 . 1 Investigation 2 | . . 2 . . . . . Extermination 5 | . . . . . 4 . 1 Reinforcement 7 | . . 1 . 2 4 . . Assault . | . . . . . . . . Garrison . | . . . . . . . . Intercept . | . . . . . . . . Searches Triggered . | . . . . . . . . Construction Impeded . | . . . . . . . . Haulers Reinforced 1 | . . . . . 1 . . Active Scanning Responses . | . . . . . . . . Cargo Convoy Interrupts . | . . . . . . . . Stealth | -11 -10 -9 -9 -8 -7 -7 -7 --------- Run | Yrd Mat Mat Min Mat Fac Was Fac Distress Signals 5 | . 1 1 . 2 1 . . Communications Jammed . | . . . . . . . . Distress Signals . | . . . . . . . . Times Spotted 122 | . 10 12 13 22 59 . 6 Peak Tracking Total 10 | . 4 6 10 10 10 . 3 Tactical Retreats 24 | . . 2 3 5 14 . . Traps | -11 -10 -9 -9 -8 -7 -7 -7 ------- Run | Yrd Mat Mat Min Mat Fac Was Fac Traps Triggered 5 | . . 1 . . 4 . . Indirectly . | . . . . . . . . Trap Hack Attempts . | . . . . . . . . Triggered . | . . . . . . . . Disarmed . | . . . . . . . . Reprogrammed . | . . . . . . . . Reused 2 | . . . 2 . . . . Traps Extracted . | . . . . . . . . Installed 2 | . . . 2 . . . . Triggered . | . . . . . . . . Most Traps Carried 2 | . . . 2 . . . . Machines | -11 -10 -9 -9 -8 -7 -7 -7 ---------- Run | Yrd Mat Mat Min Mat Fac Was Fac Machines Disabled 13 | . . . . 3 6 . 4 Max in Single Turn 3 | . . . . 1 3 . . Machines Repaired . | . . . . . . . . Machines Dismantled . | . . . . . . . . Machines Sabotaged . | . . . . . . . . Overloaded Fab Kills . | . . . . . . . . Hacking | -11 -10 -9 -9 -8 -7 -7 -7 --------- Run | Yrd Mat Mat Min Mat Fac Was Fac Machines Accessed 4 | . . 1 . 2 1 . . Terminals 3 | . . 1 . 2 . . . Fabricators . | . . . . . . . . Repair Stations 1 | . . . . . 1 . . Recycling Units . | . . . . . . . . Scanalyzers . | . . . . . . . . Garrison Access . | . . . . . . . . Total Hacks 13 | . . 7 . 4 2 . . Successful 11 | . . 6 . 4 1 . . Failed 2 | . . 1 . . 1 . . Catastrophic . | . . . . . . . . Database Lockouts . | . . . . . . . . Manual . | . . . . . . . . Terminals 11 | . . 7 . 4 . . . Fabricators . | . . . . . . . . Repair Stations 2 | . . . . . 2 . . Recycling Units . | . . . . . . . . Scanalyzers . | . . . . . . . . Garrison Access . | . . . . . . . . Terminal Hacks 10 | . . 6 . 4 . . . Record 5 | . . 2 . 3 . . . Alert Level 5 | . . 4 . 1 . . . Fabricator Hacks . | . . . . . . . . Repair Station Hacks 1 | . . . . . 1 . . Scan Component 1 | . . . . . 1 . . Recycling Unit Hacks . | . . . . . . . . Scanalyzer . | . . . . . . . . Garrison Access Hacks . | . . . . . . . . Unauthorized Hacks . | . . . . . . . . Terminals . | . . . . . . . . Fabricators . | . . . . . . . . Repair Stations . | . . . . . . . . Recycling Units . | . . . . . . . . Scanalyzers . | . . . . . . . . Garrison Access . | . . . . . . . . Data Cores Recovered . | . . . . . . . . Used . | . . . . . . . . Hacking Detections 3 | . . 1 . 1 1 . . Full Trace Events 1 | . . 1 . . . . . Feedback Events . | . . . . . . . . Feedback Blocked . | . . . . . . . . Robot Schematics Acquired . | . . . . . . . . Robots Built . | . . . . . . . . Authchips . | . . . . . . . . Time . | . . . . . . . . Total Robot Build Rating . | . . . . . . . . Part Schematics Acquired . | . . . . . . . . Parts Built . | . . . . . . . . Authchips . | . . . . . . . . Time . | . . . . . . . . Total Part Build Rating . | . . . . . . . . Parts Repaired . | . . . . . . . . Time . | . . . . . . . . Parts Recycled . | . . . . . . . . Recycled Matter . | . . . . . . . . Retrieved Matter . | . . . . . . . . Retrieved Components . | . . . . . . . . Parts Scanalyzed . | . . . . . . . . Part Schematics Acquired . | . . . . . . . . Parts Damaged . | . . . . . . . . Bothacking | -11 -10 -9 -9 -8 -7 -7 -7 ------------ Run | Yrd Mat Mat Min Mat Fac Was Fac Used RIF Installer . | . . . . . . . . Robots Hacked . | . . . . . . . . Non-combat . | . . . . . . . . Combat . | . . . . . . . . Robot Hacks Applied . | . . . . . . . . Relay Couplers Released . | . . . . . . . . Fabnet Peak Effective % . | . . . . . . . . Robots Rewired . | . . . . . . . . Allies Hacked . | . . . . . . . . Hacks Repelled . | . . . . . . . . Allies | -11 -10 -9 -9 -8 -7 -7 -7 -------- Run | Yrd Mat Mat Min Mat Fac Was Fac Total Allies 23 | . . . 3 . . 20 . Largest Group 20 | . . . 3 2 . 20 3 Highest-Rated Group 545 | . . . 40 32 . 545 63 Highest-Rated Ally 35 | . . . 16 16 . 35 35 Total Orders . | . . . . . . . . Ally Attacks 30 | . . . . 11 . . 19 Total Damage 667 | . . . . 125 . . 542 Kills 7 | . . . . 2 . . 5 Allies Corrupted . | . . . . . . . . Allies Melted . | . . . . . . . . Intel | -11 -10 -9 -9 -8 -7 -7 -7 ------- Run | Yrd Mat Mat Min Mat Fac Was Fac Active Infowar (turns) 3286 | 83 389 331 324 634 1376 . 149 Optics 633 | . . . . 252 381 . . Sensors 781 | . 280 331 170 . . . . Terrain 562 | 83 109 . 315 55 . . . Structural 521 | . . . . . 521 . . ECM 1690 | . . 331 9 455 746 . 149 Robot Analysis Total . | . . . . . . . . Derelict Logs Recovered 1 | . . . 1 . . . . Drone Launches . | . . . . . . . . Drone Recoveries . | . . . . . . . . Exploration | -11 -10 -9 -9 -8 -7 -7 -7 ------------- Run | Yrd Mat Mat Min Mat Fac Was Fac Turns Passed 4389 | 129 424 331 324 693 1953 187 348 Spaces Moved 2972 | 92 277 140 295 442 1209 182 335 Core 293 | 7 . . . 39 247 . . Treads . | . . . . . . . . Legs 26 | . . . . 26 . . . Wheels 1308 | 85 277 57 . . 372 182 335 Hover 286 | . . . . . 286 . . Flight 1059 | . . 83 295 377 304 . . Fastest Speed 28 | 50 100 29 29 28 40 100 100 Average Speed 105 | 98 100 95 96 123 106 100 100 Slowest Speed 285 | 150 100 285 112 280 200 100 100 Overloaded Moves . | . . . . . . . . Propulsion Burnouts . | . . . . . . . . Robots Hopped . | . . . . . . . . Potential Cave-ins . | . . . . . . . . Cave-ins Triggered . | . . . . . . . . Exploration Rate (%) 39 | 5 57 23 61 40 33 84 12 Regions Visited 7 Branch Regions 1 Pre-discovered Areas . | . . . . . . . . Known Exits Taken . | . . . . . . . . Unknown Exits Taken 5 | 1 1 1 1 1 . . . Scrap Searched 1 | . . . 1 . . . . Spaces Dug . | . . . . . . . . Terrain Destroyed 197 | . . . . . 166 . 31 Melee . | . . . . . . . . Projectile . | . . . . . . . . AOE 197 | . . . . . 166 . 31 Terrain Rammed . | . . . . . . . . Walls Destroyed . | . . . . . . . . Machines Disabled . | . . . . . . . . Actions | -11 -10 -9 -9 -8 -7 -7 -7 --------- Run | Yrd Mat Mat Min Mat Fac Was Fac Total 4059 | 119 402 303 327 563 1813 188 344 Wait 828 | . 95 125 11 95 501 . 1 Move 2966 | 91 276 139 294 441 1209 181 335 Hop . | . . . . . . . . Pick Up 38 | 11 7 2 3 3 10 2 . Fast Attach 41 | 7 1 2 1 7 20 . 3 Attach 11 | . . 2 . 2 7 . . Detach 2 | . . . . 1 1 . . Swap 11 | . 4 3 2 . 1 1 . Drop 37 | 4 7 4 5 3 9 4 1 Fire 95 | 6 11 14 8 11 42 . 3 Melee 20 | . . 12 . . 7 . 1 Ram 8 | . 1 . 1 . 6 . . Kick . | . . . . . . . . Crush . | . . . . . . . . Escape Stasis . | . . . . . . . . Rewire . | . . . . . . . . Trap 2 | . . . 2 . . . . Miscellaneous . | . . . . . . . . Route ------- -11/Scrapyard -10/Materials (discovered 2 exits: *Mat / [*Min]) -9/Materials -9/Mines -8/Materials (discovered 2 exits: *Fac / *Sto) -7/Factory -7/Waste -7/Factory History --------- Turn | Location | Event 18 | -11/Scrapyard | Discovered new exit (range 15) 130 | -11/Scrapyard | Entered Materials 199 | -10/Materials | Discovered new exit (range 16) 310 | -10/Materials | Build established: Mutant 457 | -10/Materials | Discovered new exit (range 16) 554 | -10/Materials | Entered another Materials area 554 | -9/Materials | Evolved 2 slots: Propulsion x1, Utility x1 745 | -9/Materials | Discovered new exit (range 16) 885 | -9/Materials | Entered Mines 891 | -9/Mines | Found a hidden stash of uninstalled traps 929 | -9/Mines | Met a Derelict bent on vengeance 964 | -9/Mines | Assembled infested the area 1086 | -9/Mines | Lost 4 parts (1n1u2w) 1092 | -9/Mines | Assisted by bots powering up and referring to "LRC-V3" 1203 | -9/Mines | Discovered new exit (range 5) 1209 | -9/Mines | Entered Materials 1209 | -8/Materials | Accompanied by 2 allies 1209 | -8/Materials | Evolved 2 slots: Power x1, Propulsion x1 1210 | -8/Materials | Identified exit to Storage 1858 | -8/Materials | Lost 4 parts (3n1u) 1867 | -8/Materials | Discovered new exit (range 20) 1902 | -8/Materials | Entered Factory 1902 | -7/Factory | Evolved 2 slots: Utility x2 2626 | -7/Factory | Lost 3 parts (1p1n1u) 2902 | -7/Factory | Core integrity fell below 50% 3150 | -7/Factory | Build established: Infiltrator-Mutant 3347 | -7/Factory | Lost 3 parts (1p1n1w) 3376 | -7/Factory | Allied Derelicts emerged from ambush trap array 3537 | -7/Factory | Core integrity fell below 20% 3608 | -7/Factory | Build established: Mutant 3855 | -7/Factory | Sucked down chute 3855 | -7/Factory | Entered Waste 3856 | -7/Waste | Joined by Warlord forces that had cleared the area 4029 | -7/Waste | Discovered new exit (range 12) 4042 | -7/Waste | Entered Factory 4042 | -7/Factory | Accompanied by 3 allies 4390 | -7/Factory | Destroyed by Y-54 Guardian with Gatling Laser Last Messages --------------- 04264_ Destroyed Lgt. Ion Engine. 04264_ R-06 Scavenger destroyed. 04267_ The unstable cave ceiling collapses. 04270_ Dropped Imp. Deuterium Engine. 04271_ Acquired Unknown Power Core. 04271_ Identified Lgt. Nuclear Core. 04272_ Acquired 51 matter. 04290_ U-05 Engineer builds a Wall. 04319_ System corrupted: Energy discharge (-87). 04368_ Destroyed Wheel. 04368_ K-01 Serf destroyed. 04369_ The unstable cave ceiling collapses. 04370_ Y-54 Guardian destroyed. 04376_ System corrupted: Component data lost. 04377_ The unstable cave ceiling collapses. 04384_ ALERT: Potential suspicious activity detected, Programmers report to Factory Zone 7Y. 04385_ Acquired 33 matter. 04388_ U-05 Engineer lays Concrete. 04388_ R-06 Scavenger collects Flak Gun. Map ----- +----------------------------------------------------+ | ?????????????????????????????# | | ?????????????????????????????# | | ?????????????????????????????# | | ?????????????????????######### """""" | | ?????????????? """""" | | ?????????????????????######### """""" | | ??????????????#######????????# ### """""" | | ??????????????# #????????# #?# """""" | | ??????????????# #????????# #?# """"?" | | ??????????????# """ ########## #?# ?? | | ??????????????# """ # #?# ?? | | ??????????????# """ # #?########+?# | | ??????????????# + #???????????? | | ??????????????# # ##+######### #???????????? | | ??????????????# # ## # #???????????? | | ??????????????# "T" # ## # #???????????? | | ??????????????# """ # ## """ """ # #???????????? | | ??????????????# # # """ """ # #???????????? | | ??????????????#### """ """ #?????????????? | | ????????????????## #?????????????? | | ???????????## ### r #?????????????? | | ???????????# # #?????????????? | | ???????????# #########?????????????? | | ???????????# #?????????????????????? | | ???????????# d #?????????????????????? | | ??????????# @##?????????????????????? | | ??????????# Y u ?????????????????????? | | ?????????? [ ######## ???????????????????? | | ??????????? ???????????? ?????????????????? | | ??????????? ?????????????? ???????????????? | | ??????????? ???????????????#######??????????????? | | ??????????##?????????????????????????????????????? | | ?????????????????????????????????????????????????? | | ?????????????????????????????????????????????????? | | ?????????????????????????????????????????????????? | | ?????????????????????????????????????????????????? | | ?????????????????????????????????????????????????? | | ?????????????????????????????????????????????????? | | ?????????????????????????????????????????????????? | | ?????????????????????????????????????????????????? | | ?????????????????????????????????????????????????? | | ?????????????????????????????????????????????????? | | ?????????????????????????????????????????????????? | | ?????????????????????????????????????????????????? | | ?????????????????????????????????????????????????? | | ?????????????????????????????????????????????????? | | ?????????????????????????????????????????????????? | | ?????????????????????????????????????????????????? | | ?????????????????????????????????????????????????? | | ?????????????????????????????????????????????????? | +----------------------------------------------------+ Best States ------------- Heat Dissipation 34 Energy Generation 27 Energy Capacity 480 Matter Stores 348 Matter Capacity 450 Sight Range 20 Robot Scan Range 14 Terrain Scan Range 16 Terrain Scan Density 10 ECM Strength 1 Armor Coverage 80 Resistance: KI 20 Resistance: TH 20 Resistance: EX 20 Resistance: EM 20 Resistance: I 20 Resistance: S 20 Resistance: P 20 Evasion (%) 64 Core Analysis 6 Offensive Hacking 10 Item Schematics ----------------- None Robot Schematics ------------------ None Fabricated ------------ Nothing Repaired ---------- Nothing Alien Tech Used ----------------- None Achievements -------------- Backstab Slippery One Challenges ------------ None Game ------ Seed MappingLightDisintegrator Manual? 0 Play Time 00:52:06 Cumulative 101.4 hours Start 2025.07.22 @ 22:09:38 End 2025.07.22 @ 22:59:52 Sessions 1 Manual Loads 0 Difficulty Adventurer Special Mode None Game No. 65 Rogue 32 Adventurer 33 Explorer 0 Win Type - Total 0 Types 0/0/0/0/0/0/0/0/0/0 Lore% 9 Gallery% 32 Achievement% 23 Wizard Run 0 Options --------- Layout 2 ASCII 0 Keyboard 0 Movement Numpad Keybinds 0 Fullscreen 1 Font 32/SmallcapsGlow Map View 77x44 Zoom Use 0% Tactical HUD 1 Map Filters NONE Filters NONE Steam 1 RUN: c673e20c-23da-47cb-a07b-fd2a70b6954c